[Event "December 12 Late 2023"]
[Site "https://www.chess.com"]
[Date "2023.12.12"]
[Round "4"]
[White "Mirzoev, Azer"]
[Black "Fedoseev, Vladimir"]
[Result "0-1"]
[Board "26"]
[TimeControl "180+1"]
[WhiteFideId "13400304"]
[BlackFideId "24130737"]
[WhiteElo "2616"]
[BlackElo "3045"]
[WhiteTeam "AZE"]
[BlackTeam "SLO"]
[WhiteClock "0:00:08"]
[BlackClock "0:01:51"]

1. d4 {[%clk 0:01:32]}  Nf6 {[%clk 0:02:47]} 2. Nf3 {[%clk 0:01:32]}  e6 {[%clk 0:02:47]} 3. Bg5 {[%clk 0:01:31]}  h6 {[%clk 0:02:46]} 4. Bh4 {[%clk 0:01:31]}  c5 {[%clk 0:02:44]} 5. e3 {[%clk 0:01:31]}  b6 {[%clk 0:02:44]} 6. Nbd2 {[%clk 0:01:31]}  Bb7 {[%clk 0:02:45]} 7. a4 {[%clk 0:01:31]}  Be7 {[%clk 0:02:45]} 8. c3 {[%clk 0:01:29]}  O-O {[%clk 0:02:45]} 9. Bd3 {[%clk 0:01:27]}  Nc6 {[%clk 0:02:45]} 10. O-O {[%clk 0:01:26]}  d5 {[%clk 0:02:46]} 11. Qe2 {[%clk 0:01:22]}  Rc8 {[%clk 0:02:46]} 12. Rfd1 {[%clk 0:01:19]}  Ne4 {[%clk 0:02:40]} 13. Bxe7 {[%clk 0:01:18]}  Nxe7 {[%clk 0:02:41]} 14. Ne5 {[%clk 0:01:10]}  Nd6 {[%clk 0:02:41]} 15. h3 {[%clk 0:01:08]}  Qc7 {[%clk 0:02:40]} 16. Qh5 {[%clk 0:01:02]}  Bc6 {[%clk 0:02:36]} 17. Nxc6 {[%clk 0:01:00]}  Nxc6 {[%clk 0:02:35]} 18. Nf3 {[%clk 0:00:59]}  f5 {[%clk 0:02:28]} 19. Qh4 {[%clk 0:00:47]}  Ne4 {[%clk 0:02:26]} 20. Bb5 {[%clk 0:00:43]}  Rf6 {[%clk 0:02:07]} 21. Qf4 {[%clk 0:00:43]}  Qxf4 {[%clk 0:02:02]} 22. exf4 {[%clk 0:00:43]}  Na5 {[%clk 0:02:02]} 23. Ba6 {[%clk 0:00:34]}  Rc7 {[%clk 0:02:02]} 24. Rab1 {[%clk 0:00:25]}  c4 {[%clk 0:02:02]} 25. Ne5 {[%clk 0:00:23]}  Nd6 {[%clk 0:01:58]} 26. h4 {[%clk 0:00:22]}  h5 {[%clk 0:01:57]} 27. f3 {[%clk 0:00:20]}  Kf8 {[%clk 0:01:57]} 28. Kf2 {[%clk 0:00:20]}  Ke7 {[%clk 0:01:57]} 29. Rg1 {[%clk 0:00:19]}  Kd8 {[%clk 0:01:57]} 30. Ke3 {[%clk 0:00:18]}  Re7 {[%clk 0:01:55]} 31. g4 {[%clk 0:00:17]}  fxg4 {[%clk 0:01:55]} 32. fxg4 {[%clk 0:00:18]}  hxg4 {[%clk 0:01:55]} 33. Rxg4 {[%clk 0:00:18]}  Kc7 {[%clk 0:01:56]} 34. Rh1 {[%clk 0:00:18]}  Nc6 {[%clk 0:01:52]} 35. h5 {[%clk 0:00:17]}  Nb8 {[%clk 0:01:52]} 36. Bb5 {[%clk 0:00:16]}  a6 {[%clk 0:01:52]} 37. Rhg1 {[%clk 0:00:08]}  axb5 {[%clk 0:01:51]} 0-1

[Event "December 12 Late 2023"]
[Site "https://www.chess.com"]
[Date "2023.12.12"]
[Round "4"]
[White "Mendez Fortes, Eduardo Jesus"]
[Black "Zhigalko, Sergei"]
[Result "1-0"]
[Board "29"]
[TimeControl "180+1"]
[WhiteFideId "3502376"]
[BlackFideId "13502956"]
[WhiteElo "2596"]
[BlackElo "2961"]
[WhiteTeam "CUB"]
[BlackTeam "BLR"]
[WhiteClock "0:01:34"]
[BlackClock "0:00:05"]

1. e4 {[%clk 0:02:57]}  c5 {[%clk 0:03:00]} 2. Nf3 {[%clk 0:02:55]}  Nc6 {[%clk 0:03:00]} 3. d4 {[%clk 0:02:51]}  cxd4 {[%clk 0:03:01]} 4. Nxd4 {[%clk 0:02:52]}  Nf6 {[%clk 0:03:02]} 5. Nc3 {[%clk 0:02:52]}  e5 {[%clk 0:03:02]} 6. Ndb5 {[%clk 0:02:53]}  d6 {[%clk 0:03:01]} 7. Bg5 {[%clk 0:02:50]}  a6 {[%clk 0:03:01]} 8. Na3 {[%clk 0:02:50]}  b5 {[%clk 0:03:02]} 9. Nd5 {[%clk 0:02:50]}  Be7 {[%clk 0:03:02]} 10. Bxf6 {[%clk 0:02:50]}  Bxf6 {[%clk 0:03:02]} 11. c4 {[%clk 0:02:51]}  b4 {[%clk 0:03:02]} 12. Nc2 {[%clk 0:02:52]}  O-O {[%clk 0:03:03]} 13. Qf3 {[%clk 0:02:51]}  Bg5 {[%clk 0:02:27]} 14. h4 {[%clk 0:02:49]}  Bh6 {[%clk 0:02:25]} 15. g4 {[%clk 0:02:50]}  Bf4 {[%clk 0:02:16]} 16. Be2 {[%clk 0:02:45]}  Be6 {[%clk 0:01:49]} 17. Nxf4 {[%clk 0:02:41]}  exf4 {[%clk 0:01:50]} 18. Qxf4 {[%clk 0:02:41]}  Ne5 {[%clk 0:01:44]} 19. Ne3 {[%clk 0:02:38]}  Qb6 {[%clk 0:01:28]} 20. Rd1 {[%clk 0:02:19]}  a5 {[%clk 0:01:27]} 21. h5 {[%clk 0:02:12]}  f6 {[%clk 0:01:19]} 22. Qg3 {[%clk 0:02:01]}  b3 {[%clk 0:01:12]} 23. a3 {[%clk 0:02:00]}  Rad8 {[%clk 0:01:01]} 24. f4 {[%clk 0:01:56]}  Nc6 {[%clk 0:01:02]} 25. g5 {[%clk 0:01:50]}  fxg5 {[%clk 0:00:59]} 26. f5 {[%clk 0:01:50]}  Bf7 {[%clk 0:00:26]} 27. h6 {[%clk 0:01:49]}  gxh6 {[%clk 0:00:22]} 28. Rxh6 {[%clk 0:01:48]}  Kh8 {[%clk 0:00:21]} 29. Qxg5 {[%clk 0:01:44]}  Rg8 {[%clk 0:00:19]} 30. Qf6+ {[%clk 0:01:42]}  Rg7 {[%clk 0:00:19]} 31. Kf2 {[%clk 0:01:37]}  Rg8 {[%clk 0:00:07]} 32. Rxh7+ {[%clk 0:01:33]}  Kxh7 {[%clk 0:00:05]} 33. Rh1+ {[%clk 0:01:34]}  Bh5 {[%clk 0:00:05]} 34. Rxh5# {[%clk 0:01:34]} 1-0

[Event "December 12 Late 2023"]
[Site "https://www.chess.com"]
[Date "2023.12.12"]
[Round "4"]
[White "Durarbayli, Vasif"]
[Black "Aghasiyev, Kamal"]
[Result "1-0"]
[Board "32"]
[TimeControl "180+1"]
[WhiteFideId "13402935"]
[BlackFideId "13402854"]
[WhiteElo "2907"]
[BlackElo "2582"]
[WhiteTeam "AZE"]
[BlackTeam "AZE"]
[WhiteClock "0:00:06"]
[BlackClock "0:00:00"]

1. c4 {[%clk 0:03:00]}  e5 {[%clk 0:02:58]} 2. g3 {[%clk 0:03:00]}  Nf6 {[%clk 0:02:57]} 3. Bg2 {[%clk 0:03:01]}  d5 {[%clk 0:02:55]} 4. cxd5 {[%clk 0:03:00]}  Nxd5 {[%clk 0:02:55]} 5. Nc3 {[%clk 0:03:01]}  Nf6 {[%clk 0:02:53]} 6. d3 {[%clk 0:02:57]}  Nc6 {[%clk 0:02:53]} 7. Bxc6+ {[%clk 0:02:53]}  bxc6 {[%clk 0:02:52]} 8. Nf3 {[%clk 0:02:54]}  Bd6 {[%clk 0:02:46]} 9. O-O {[%clk 0:02:52]}  O-O {[%clk 0:02:31]} 10. Qa4 {[%clk 0:02:51]}  c5 {[%clk 0:02:29]} 11. Bg5 {[%clk 0:02:50]}  h6 {[%clk 0:02:28]} 12. Bxf6 {[%clk 0:02:47]}  Qxf6 {[%clk 0:02:28]} 13. Ne4 {[%clk 0:02:47]}  Qe7 {[%clk 0:02:25]} 14. Rac1 {[%clk 0:02:44]}  Bb7 {[%clk 0:02:18]} 15. Qc4 {[%clk 0:02:39]}  Rab8 {[%clk 0:02:12]} 16. b3 {[%clk 0:02:26]}  Bxe4 {[%clk 0:01:35]} 17. dxe4 {[%clk 0:02:19]}  Rb4 {[%clk 0:01:35]} 18. Qc2 {[%clk 0:02:19]}  c4 {[%clk 0:01:34]} 19. bxc4 {[%clk 0:02:17]}  Bc5 {[%clk 0:01:33]} 20. Ne1 {[%clk 0:02:13]}  Rfb8 {[%clk 0:01:25]} 21. Nd3 {[%clk 0:02:12]}  R4b6 {[%clk 0:01:25]} 22. Rb1 {[%clk 0:02:09]}  Qd6 {[%clk 0:01:15]} 23. e3 {[%clk 0:01:48]}  f6 {[%clk 0:01:08]} 24. Rb3 {[%clk 0:01:42]}  Qc6 {[%clk 0:01:06]} 25. Rc1 {[%clk 0:01:37]}  a5 {[%clk 0:00:55]} 26. Qd1 {[%clk 0:01:17]}  Bf8 {[%clk 0:00:52]} 27. Rxb6 {[%clk 0:01:11]}  cxb6 {[%clk 0:00:46]} 28. f3 {[%clk 0:01:10]}  Rd8 {[%clk 0:00:45]} 29. Qb3 {[%clk 0:01:10]}  a4 {[%clk 0:00:43]} 30. Qc2 {[%clk 0:01:01]}  Bc5 {[%clk 0:00:40]} 31. Kf2 {[%clk 0:01:00]}  Qd6 {[%clk 0:00:33]} 32. Rd1 {[%clk 0:00:56]}  Kh7 {[%clk 0:00:30]} 33. Nb2 {[%clk 0:00:50]}  Qe7 {[%clk 0:00:25]} 34. Rxd8 {[%clk 0:00:45]}  Qxd8 {[%clk 0:00:25]} 35. Nxa4 {[%clk 0:00:45]}  Qa8 {[%clk 0:00:23]} 36. Nxc5 {[%clk 0:00:40]}  bxc5 {[%clk 0:00:23]} 37. a4 {[%clk 0:00:37]}  Qa5 {[%clk 0:00:22]} 38. g4 {[%clk 0:00:37]}  Qb6 {[%clk 0:00:17]} 39. h4 {[%clk 0:00:36]}  h5 {[%clk 0:00:15]} 40. gxh5 {[%clk 0:00:33]}  Kh6 {[%clk 0:00:14]} 41. Qd2 {[%clk 0:00:22]}  Kxh5 {[%clk 0:00:08]} 42. a5 {[%clk 0:00:22]}  Qa6 {[%clk 0:00:06]} 43. Qa2 {[%clk 0:00:20]}  Kxh4 {[%clk 0:00:05]} 44. Qa4 {[%clk 0:00:20]}  Qe6 {[%clk 0:00:03]} 45. Ke2 {[%clk 0:00:18]}  Qh3 {[%clk 0:00:03]} 46. Qa1 {[%clk 0:00:16]}  Qg2+ {[%clk 0:00:03]} 47. Kd3 {[%clk 0:00:17]}  Qxf3 {[%clk 0:00:03]} 48. a6 {[%clk 0:00:17]}  f5 {[%clk 0:00:02]} 49. exf5 {[%clk 0:00:13]}  e4+ {[%clk 0:00:02]} 50. Kc2 {[%clk 0:00:12]}  Qe2+ {[%clk 0:00:02]} 51. Kb3 {[%clk 0:00:13]}  Qd3+ {[%clk 0:00:02]} 52. Qc3 {[%clk 0:00:12]}  Qb1+ {[%clk 0:00:03]} 53. Qb2 {[%clk 0:00:12]}  Qd3+ {[%clk 0:00:03]} 54. Ka4 {[%clk 0:00:12]}  Qxc4+ {[%clk 0:00:03]} 55. Ka5 {[%clk 0:00:12]}  Qd5 {[%clk 0:00:02]} 56. a7 {[%clk 0:00:11]}  c4+ {[%clk 0:00:02]} 57. Qb5 {[%clk 0:00:08]}  Qd8+ {[%clk 0:00:01]} 58. Qb6 {[%clk 0:00:08]}  Qa8 {[%clk 0:00:00]} 59. Ka6 {[%clk 0:00:06]} 1-0

[Event "December 12 Late 2023"]
[Site "https://www.chess.com"]
[Date "2023.12.12"]
[Round "4"]
[White "Assylov, Miras"]
[Black "Demchenko, Anton"]
[Result "0-1"]
[Board "35"]
[TimeControl "180+1"]
[WhiteFideId "13728873"]
[BlackFideId "4160258"]
[WhiteElo "2578"]
[BlackElo "2878"]
[WhiteTeam "KAZ"]
[BlackTeam "SLO"]
[WhiteClock "0:00:02"]
[BlackClock "0:00:51"]

1. b3 {[%clk 0:03:00]}  g6 {[%clk 0:02:57]} 2. Bb2 {[%clk 0:02:58]}  Nf6 {[%clk 0:02:57]} 3. Bxf6 {[%clk 0:02:54]}  exf6 {[%clk 0:02:58]} 4. c4 {[%clk 0:02:54]}  d5 {[%clk 0:02:59]} 5. cxd5 {[%clk 0:02:53]}  Qxd5 {[%clk 0:03:00]} 6. Nc3 {[%clk 0:02:53]}  Qd8 {[%clk 0:03:00]} 7. e3 {[%clk 0:02:54]}  c6 {[%clk 0:02:59]} 8. Nge2 {[%clk 0:02:49]}  Ba3 {[%clk 0:02:58]} 9. d4 {[%clk 0:02:44]}  Qe7 {[%clk 0:02:55]} 10. g3 {[%clk 0:02:44]}  Bf5 {[%clk 0:02:53]} 11. Bg2 {[%clk 0:02:43]}  Bb2 {[%clk 0:02:53]} 12. O-O {[%clk 0:02:38]}  Bxa1 {[%clk 0:02:52]} 13. Qxa1 {[%clk 0:02:39]}  O-O {[%clk 0:02:51]} 14. Rc1 {[%clk 0:02:37]}  Na6 {[%clk 0:02:44]} 15. d5 {[%clk 0:02:35]}  c5 {[%clk 0:02:29]} 16. d6 {[%clk 0:02:19]}  Qxd6 {[%clk 0:02:29]} 17. Bxb7 {[%clk 0:02:16]}  Nb4 {[%clk 0:02:16]} 18. Rd1 {[%clk 0:02:07]}  Qe5 {[%clk 0:02:08]} 19. Bxa8 {[%clk 0:01:43]}  Rxa8 {[%clk 0:02:09]} 20. Nf4 {[%clk 0:01:43]}  Kg7 {[%clk 0:01:47]} 21. Ncd5 {[%clk 0:01:41]}  Nc2 {[%clk 0:01:35]} 22. Qxe5 {[%clk 0:01:29]}  fxe5 {[%clk 0:01:36]} 23. Nd3 {[%clk 0:01:25]}  e4 {[%clk 0:01:16]} 24. Nxc5 {[%clk 0:01:19]}  Rc8 {[%clk 0:01:17]} 25. Na4 {[%clk 0:01:02]}  Na3 {[%clk 0:01:11]} 26. Ne7 {[%clk 0:00:35]}  Rc2 {[%clk 0:01:10]} 27. Nxf5+ {[%clk 0:00:35]}  gxf5 {[%clk 0:01:11]} 28. Rd5 {[%clk 0:00:33]}  Kg6 {[%clk 0:01:09]} 29. Ra5 {[%clk 0:00:28]}  Nb1 {[%clk 0:01:01]} 30. Rxa7 {[%clk 0:00:18]}  Nd2 {[%clk 0:01:02]} 31. Kg2 {[%clk 0:00:09]}  Nf3 {[%clk 0:00:59]} 32. g4 {[%clk 0:00:10]}  fxg4 {[%clk 0:00:56]} 33. Kg3 {[%clk 0:00:10]}  h5 {[%clk 0:00:57]} 34. Ra6+ {[%clk 0:00:07]}  Kg5 {[%clk 0:00:56]} 35. Nb6 {[%clk 0:00:04]}  h4+ {[%clk 0:00:54]} 36. Kg2 {[%clk 0:00:05]}  Rc1 {[%clk 0:00:51]} 37. Ra5+ {[%clk 0:00:02]}  f5 {[%clk 0:00:51]} 0-1

[Event "December 12 Late 2023"]
[Site "https://www.chess.com"]
[Date "2023.12.12"]
[Round "4"]
[White "Hajiyev, Kanan"]
[Black "Tari, Aryan"]
[Result "1/2-1/2"]
[Board "36"]
[TimeControl "180+1"]
[WhiteFideId "13404148"]
[BlackFideId "1510045"]
[WhiteElo "2575"]
[BlackElo "2866"]
[WhiteTeam "AZE"]
[BlackTeam "NOR"]
[WhiteClock "0:00:08"]
[BlackClock "0:00:06"]

1. d4 {[%clk 0:02:56]}  d5 {[%clk 0:02:27]} 2. Nf3 {[%clk 0:02:55]}  Nf6 {[%clk 0:02:27]} 3. c4 {[%clk 0:02:55]}  e6 {[%clk 0:02:28]} 4. cxd5 {[%clk 0:02:56]}  exd5 {[%clk 0:02:28]} 5. Nc3 {[%clk 0:02:57]}  Bb4 {[%clk 0:02:23]} 6. Qb3 {[%clk 0:02:49]}  c5 {[%clk 0:02:19]} 7. a3 {[%clk 0:02:45]}  Bxc3+ {[%clk 0:02:17]} 8. bxc3 {[%clk 0:02:46]}  c4 {[%clk 0:02:10]} 9. Qc2 {[%clk 0:02:46]}  Qa5 {[%clk 0:02:10]} 10. Nd2 {[%clk 0:02:29]}  O-O {[%clk 0:02:07]} 11. e3 {[%clk 0:02:19]}  Nc6 {[%clk 0:02:07]} 12. Be2 {[%clk 0:02:18]}  Ne7 {[%clk 0:02:07]} 13. O-O {[%clk 0:02:13]}  Bf5 {[%clk 0:02:07]} 14. Qb2 {[%clk 0:02:14]}  b6 {[%clk 0:02:02]} 15. Qb4 {[%clk 0:02:12]}  Nc8 {[%clk 0:02:00]} 16. Qxa5 {[%clk 0:02:12]}  bxa5 {[%clk 0:02:01]} 17. Bf3 {[%clk 0:02:09]}  Nb6 {[%clk 0:01:49]} 18. a4 {[%clk 0:01:57]}  Bd3 {[%clk 0:01:49]} 19. Re1 {[%clk 0:01:57]}  Ne4 {[%clk 0:01:49]} 20. Nxe4 {[%clk 0:01:35]}  dxe4 {[%clk 0:01:49]} 21. Bd1 {[%clk 0:01:32]}  Nd5 {[%clk 0:01:49]} 22. Ba3 {[%clk 0:01:22]}  Nxc3 {[%clk 0:01:34]} 23. Bxf8 {[%clk 0:01:22]}  Kxf8 {[%clk 0:01:35]} 24. f3 {[%clk 0:01:19]}  f5 {[%clk 0:01:34]} 25. fxe4 {[%clk 0:01:19]}  fxe4 {[%clk 0:01:32]} 26. Bg4 {[%clk 0:01:19]}  Ke7 {[%clk 0:01:31]} 27. h4 {[%clk 0:01:16]}  Nd5 {[%clk 0:01:29]} 28. h5 {[%clk 0:01:13]}  c3 {[%clk 0:01:28]} 29. Bf5 {[%clk 0:01:13]}  h6 {[%clk 0:01:26]} 30. g4 {[%clk 0:01:11]}  Rb8 {[%clk 0:01:25]} 31. Kf2 {[%clk 0:00:56]}  Rb2+ {[%clk 0:01:24]} 32. Kg3 {[%clk 0:00:56]}  Nb4 {[%clk 0:01:17]} 33. Kf4 {[%clk 0:00:43]}  Nc2 {[%clk 0:00:28]} 34. Bxe4 {[%clk 0:00:42]}  Nxe1 {[%clk 0:00:27]} 35. Rxe1 {[%clk 0:00:42]}  Bxe4 {[%clk 0:00:19]} 36. Kxe4 {[%clk 0:00:43]}  c2 {[%clk 0:00:20]} 37. Rc1 {[%clk 0:00:43]}  Ra2 {[%clk 0:00:19]} 38. Ke5 {[%clk 0:00:35]}  Rb2 {[%clk 0:00:15]} 39. e4 {[%clk 0:00:33]}  Kd7 {[%clk 0:00:15]} 40. d5 {[%clk 0:00:33]}  Ke7 {[%clk 0:00:13]} 41. d6+ {[%clk 0:00:31]}  Kd7 {[%clk 0:00:13]} 42. Kd5 {[%clk 0:00:32]}  Rb1 {[%clk 0:00:13]} 43. Rxc2 {[%clk 0:00:31]}  Rd1+ {[%clk 0:00:14]} 44. Ke5 {[%clk 0:00:28]}  Rxd6 {[%clk 0:00:14]} 45. Rc5 {[%clk 0:00:28]}  Re6+ {[%clk 0:00:14]} 46. Kf5 {[%clk 0:00:28]}  Rf6+ {[%clk 0:00:15]} 47. Ke5 {[%clk 0:00:27]}  a6 {[%clk 0:00:12]} 48. Rd5+ {[%clk 0:00:26]}  Ke7 {[%clk 0:00:11]} 49. Rc5 {[%clk 0:00:26]}  Rb6 {[%clk 0:00:11]} 50. Rc7+ {[%clk 0:00:26]}  Kf8 {[%clk 0:00:10]} 51. Kf5 {[%clk 0:00:20]}  Rb4 {[%clk 0:00:07]} 52. e5 {[%clk 0:00:19]}  Rxa4 {[%clk 0:00:06]} 53. e6 {[%clk 0:00:16]}  Rd4 {[%clk 0:00:03]} 54. Rc8+ {[%clk 0:00:16]}  Ke7 {[%clk 0:00:03]} 55. Rc7+ {[%clk 0:00:17]}  Kf8 {[%clk 0:00:03]} 56. Rf7+ {[%clk 0:00:17]}  Kg8 {[%clk 0:00:02]} 57. Ra7 {[%clk 0:00:17]}  Kf8 {[%clk 0:00:03]} 58. Ra8+ {[%clk 0:00:12]}  Ke7 {[%clk 0:00:03]} 59. Ra7+ {[%clk 0:00:13]}  Kf8 {[%clk 0:00:04]} 60. Rxa6 {[%clk 0:00:13]}  Ra4 {[%clk 0:00:03]} 61. g5 {[%clk 0:00:13]}  hxg5 {[%clk 0:00:04]} 62. Ra8+ {[%clk 0:00:12]}  Ke7 {[%clk 0:00:03]} 63. Ra7+ {[%clk 0:00:13]}  Kf8 {[%clk 0:00:04]} 64. Kg6 {[%clk 0:00:13]}  Re4 {[%clk 0:00:04]} 65. Rf7+ {[%clk 0:00:12]}  Ke8 {[%clk 0:00:03]} 66. Kxg7 {[%clk 0:00:08]}  Rxe6 {[%clk 0:00:03]} 67. Rf8+ {[%clk 0:00:08]}  Ke7 {[%clk 0:00:03]} 68. Rf7+ {[%clk 0:00:08]}  Ke8 {[%clk 0:00:04]} 69. Rf8+ {[%clk 0:00:09]}  Ke7 {[%clk 0:00:04]} 70. Ra8 {[%clk 0:00:09]}  Re5 {[%clk 0:00:03]} 71. h6 {[%clk 0:00:10]}  g4 {[%clk 0:00:03]} 72. Ra7+ {[%clk 0:00:09]}  Ke6 {[%clk 0:00:03]} 73. Ra6+ {[%clk 0:00:10]}  Kf5 {[%clk 0:00:03]} 74. h7 {[%clk 0:00:10]}  Re7+ {[%clk 0:00:02]} 75. Kg8 {[%clk 0:00:11]}  Re8+ {[%clk 0:00:03]} 76. Kf7 {[%clk 0:00:11]}  Rb8 {[%clk 0:00:02]} 77. Rxa5+ {[%clk 0:00:10]}  Kf4 {[%clk 0:00:03]} 78. Rd5 {[%clk 0:00:09]}  g3 {[%clk 0:00:03]} 79. Rd4+ {[%clk 0:00:09]}  Ke3 {[%clk 0:00:04]} 80. Rg4 {[%clk 0:00:09]}  Rh8 {[%clk 0:00:04]} 81. Kg7 {[%clk 0:00:08]}  Rxh7+ {[%clk 0:00:04]} 82. Kxh7 {[%clk 0:00:09]}  Kf3 {[%clk 0:00:05]} 83. Rg7 {[%clk 0:00:07]}  g2 {[%clk 0:00:05]} 84. Kh6 {[%clk 0:00:08]}  Kf2 {[%clk 0:00:06]} 85. Rxg2+ {[%clk 0:00:08]}  Kxg2 {[%clk 0:00:06]} 1/2-1/2

[Event "December 12 Late 2023"]
[Site "https://www.chess.com"]
[Date "2023.12.12"]
[Round "4"]
[White "Filgueira, Hernan"]
[Black "Riehle, Marco"]
[Result "0-1"]
[Board "38"]
[TimeControl "180+1"]
[WhiteFideId "101770"]
[BlackFideId "12904392"]
[WhiteElo "2565"]
[BlackElo "2846"]
[WhiteTeam "ARG"]
[BlackTeam "GER"]
[WhiteClock "0:00:08"]
[BlackClock "0:00:47"]

1. b3 {[%clk 0:02:56]}  e5 {[%clk 0:02:59]} 2. Bb2 {[%clk 0:02:55]}  Nc6 {[%clk 0:02:59]} 3. e3 {[%clk 0:02:53]}  Nf6 {[%clk 0:02:58]} 4. Bb5 {[%clk 0:02:53]}  Bd6 {[%clk 0:02:58]} 5. Ne2 {[%clk 0:02:53]}  O-O {[%clk 0:02:55]} 6. Ng3 {[%clk 0:02:52]}  a6 {[%clk 0:02:55]} 7. Be2 {[%clk 0:02:50]}  Re8 {[%clk 0:02:55]} 8. O-O {[%clk 0:02:49]}  b5 {[%clk 0:02:52]} 9. a4 {[%clk 0:02:41]}  b4 {[%clk 0:02:51]} 10. d3 {[%clk 0:02:42]}  Bf8 {[%clk 0:02:50]} 11. e4 {[%clk 0:02:40]}  d5 {[%clk 0:02:49]} 12. Nd2 {[%clk 0:02:39]}  Nd4 {[%clk 0:02:43]} 13. f4 {[%clk 0:02:31]}  Bc5 {[%clk 0:02:41]} 14. Kh1 {[%clk 0:02:28]}  exf4 {[%clk 0:02:37]} 15. Rxf4 {[%clk 0:02:25]}  Bb7 {[%clk 0:02:33]} 16. Bf3 {[%clk 0:01:59]}  Bd6 {[%clk 0:02:14]} 17. Rh4 {[%clk 0:01:49]}  Bxg3 {[%clk 0:02:12]} 18. hxg3 {[%clk 0:01:48]}  c5 {[%clk 0:02:13]} 19. e5 {[%clk 0:01:18]}  Rxe5 {[%clk 0:02:11]} 20. Bxd4 {[%clk 0:01:17]}  cxd4 {[%clk 0:02:09]} 21. Rxd4 {[%clk 0:01:18]}  Qe7 {[%clk 0:02:03]} 22. Nf1 {[%clk 0:01:13]}  Qc5 {[%clk 0:01:59]} 23. Rf4 {[%clk 0:01:11]}  Re6 {[%clk 0:01:47]} 24. Qd2 {[%clk 0:01:03]}  a5 {[%clk 0:01:45]} 25. g4 {[%clk 0:00:55]}  Nd7 {[%clk 0:01:34]} 26. g5 {[%clk 0:00:50]}  Rae8 {[%clk 0:01:33]} 27. Ng3 {[%clk 0:00:43]}  g6 {[%clk 0:01:26]} 28. Rf1 {[%clk 0:00:40]}  R6e7 {[%clk 0:01:12]} 29. Bg4 {[%clk 0:00:36]}  Qc7 {[%clk 0:01:08]} 30. Bxd7 {[%clk 0:00:34]}  Qxd7 {[%clk 0:01:08]} 31. Qf2 {[%clk 0:00:32]}  Qc7 {[%clk 0:01:04]} 32. d4 {[%clk 0:00:30]}  Rf8 {[%clk 0:01:02]} 33. Rf6 {[%clk 0:00:22]}  Bc8 {[%clk 0:00:59]} 34. Kg1 {[%clk 0:00:18]}  Qc3 {[%clk 0:00:51]} 35. Rf3 {[%clk 0:00:17]}  Qb2 {[%clk 0:00:51]} 36. Rf4 {[%clk 0:00:12]}  Ba6 {[%clk 0:00:50]} 37. Re1 {[%clk 0:00:11]}  Rxe1+ {[%clk 0:00:48]} 38. Qxe1 {[%clk 0:00:12]}  Qxc2 {[%clk 0:00:48]} 39. Qe7 {[%clk 0:00:11]}  Qc1+ {[%clk 0:00:47]} 40. Rf1 {[%clk 0:00:10]}  Bxf1 {[%clk 0:00:48]} 41. Nxf1 {[%clk 0:00:08]}  Qc3 {[%clk 0:00:47]} 0-1

[Event "December 12 Late 2023"]
[Site "https://www.chess.com"]
[Date "2023.12.12"]
[Round "4"]
[White "Gabuzyan, Hovhannes"]
[Black "Kashefi, Amir Hosein"]
[Result "1-0"]
[Board "39"]
[TimeControl "180+1"]
[WhiteFideId "13303732"]
[BlackFideId "12557935"]
[WhiteElo "2837"]
[BlackElo "2562"]
[WhiteTeam "ARM"]
[BlackTeam "IRI"]
[WhiteClock "0:02:13"]
[BlackClock "0:00:00"]

1. e4 {[%clk 0:02:59]}  c6 {[%clk 0:02:59]} 2. d4 {[%clk 0:02:54]}  d5 {[%clk 0:02:59]} 3. Nc3 {[%clk 0:02:54]}  dxe4 {[%clk 0:02:59]} 4. Nxe4 {[%clk 0:02:54]}  Nd7 {[%clk 0:03:00]} 5. Nf3 {[%clk 0:02:54]}  Ngf6 {[%clk 0:03:00]} 6. Nxf6+ {[%clk 0:02:54]}  Nxf6 {[%clk 0:03:01]} 7. Ne5 {[%clk 0:02:54]}  Bf5 {[%clk 0:03:01]} 8. c3 {[%clk 0:02:54]}  e6 {[%clk 0:03:01]} 9. g4 {[%clk 0:02:55]}  Bg6 {[%clk 0:02:47]} 10. h4 {[%clk 0:02:55]}  Bd6 {[%clk 0:02:18]} 11. Qe2 {[%clk 0:02:44]}  Bxe5 {[%clk 0:01:56]} 12. dxe5 {[%clk 0:02:45]}  Qd5 {[%clk 0:01:53]} 13. Rh3 {[%clk 0:02:44]}  Nd7 {[%clk 0:01:50]} 14. h5 {[%clk 0:02:41]}  Be4 {[%clk 0:01:44]} 15. f3 {[%clk 0:02:41]}  Bxf3 {[%clk 0:01:36]} 16. Rxf3 {[%clk 0:02:42]}  Nxe5 {[%clk 0:01:36]} 17. Re3 {[%clk 0:02:41]}  f6 {[%clk 0:01:32]} 18. Bg2 {[%clk 0:02:40]}  Qd6 {[%clk 0:01:17]} 19. Bd2 {[%clk 0:02:39]}  O-O-O {[%clk 0:01:13]} 20. O-O-O {[%clk 0:02:33]}  Rhe8 {[%clk 0:01:11]} 21. Be4 {[%clk 0:02:29]}  g6 {[%clk 0:01:10]} 22. Bc2 {[%clk 0:02:28]}  Qd5 {[%clk 0:01:02]} 23. Bb3 {[%clk 0:02:23]}  Qa5 {[%clk 0:00:42]} 24. g5 {[%clk 0:02:21]}  gxh5 {[%clk 0:00:08]} 25. gxf6 {[%clk 0:02:20]}  Ng4 {[%clk 0:00:09]} 26. Bxe6+ {[%clk 0:02:17]}  Kb8 {[%clk 0:00:04]} 27. Bxg4 {[%clk 0:02:17]}  Rxe3 {[%clk 0:00:04]} 28. Bxe3 {[%clk 0:02:15]}  Rxd1+ {[%clk 0:00:03]} 29. Qxd1 {[%clk 0:02:16]}  hxg4 {[%clk 0:00:00]} 30. f7 {[%clk 0:02:13]} 1-0

[Event "December 12 Late 2023"]
[Site "https://www.chess.com"]
[Date "2023.12.12"]
[Round "4"]
[White "Hong, Andrew"]
[Black "Miranda, Rafael"]
[Result "0-1"]
[Board "40"]
[TimeControl "180+1"]
[WhiteFideId "2099438"]
[BlackFideId "130990"]
[WhiteElo "2828"]
[BlackElo "2559"]
[WhiteTeam "USA"]
[BlackTeam "ARG"]
[WhiteClock "0:00:04"]
[BlackClock "0:00:14"]

1. e4 {[%clk 0:03:00]}  c5 {[%clk 0:02:55]} 2. Nc3 {[%clk 0:03:00]}  d6 {[%clk 0:02:55]} 3. d4 {[%clk 0:03:00]}  cxd4 {[%clk 0:02:56]} 4. Qxd4 {[%clk 0:03:00]}  Nc6 {[%clk 0:02:55]} 5. Qd2 {[%clk 0:03:01]}  Nf6 {[%clk 0:02:55]} 6. b3 {[%clk 0:03:01]}  g6 {[%clk 0:02:55]} 7. Bb2 {[%clk 0:03:01]}  Bg7 {[%clk 0:02:54]} 8. O-O-O {[%clk 0:03:01]}  O-O {[%clk 0:02:55]} 9. f4 {[%clk 0:03:00]}  Bd7 {[%clk 0:02:55]} 10. Nf3 {[%clk 0:03:00]}  Rc8 {[%clk 0:02:55]} 11. e5 {[%clk 0:02:58]}  Ne8 {[%clk 0:02:54]} 12. h4 {[%clk 0:02:55]}  Bf5 {[%clk 0:02:49]} 13. h5 {[%clk 0:02:49]}  Nb4 {[%clk 0:02:45]} 14. Nd4 {[%clk 0:02:47]}  dxe5 {[%clk 0:02:31]} 15. fxe5 {[%clk 0:01:37]}  Bxe5 {[%clk 0:01:31]} 16. hxg6 {[%clk 0:01:36]}  Bxg6 {[%clk 0:00:59]} 17. Qe3 {[%clk 0:01:34]}  Qc7 {[%clk 0:00:46]} 18. Rh4 {[%clk 0:01:17]}  Bf6 {[%clk 0:00:44]} 19. g3 {[%clk 0:01:10]}  Bxd4 {[%clk 0:00:33]} 20. Qxd4 {[%clk 0:00:45]}  Nxa2+ {[%clk 0:00:28]} 21. Kd2 {[%clk 0:00:37]}  Nxc3 {[%clk 0:00:19]} 22. Qxc3 {[%clk 0:00:35]}  Qd6+ {[%clk 0:00:19]} 23. Ke1 {[%clk 0:00:21]}  Rxc3 {[%clk 0:00:19]} 24. Rxd6 {[%clk 0:00:21]}  Rxc2 {[%clk 0:00:18]} 25. Rxg6+ {[%clk 0:00:11]}  fxg6 {[%clk 0:00:16]} 26. Bc4+ {[%clk 0:00:12]}  Rf7 {[%clk 0:00:17]} 27. Bxf7+ {[%clk 0:00:08]}  Kxf7 {[%clk 0:00:17]} 28. Rxh7+ {[%clk 0:00:08]}  Ke6 {[%clk 0:00:18]} 29. Bd4 {[%clk 0:00:07]}  a5 {[%clk 0:00:17]} 30. Bb6 {[%clk 0:00:06]}  Rb2 {[%clk 0:00:16]} 31. Bd8 {[%clk 0:00:06]}  Nf6 {[%clk 0:00:15]} 32. Rxe7+ {[%clk 0:00:06]}  Kd5 {[%clk 0:00:14]} 33. Rxb7 {[%clk 0:00:06]}  Ne4 {[%clk 0:00:14]} 34. Bxa5 {[%clk 0:00:04]}  Kd4 {[%clk 0:00:14]} 35. b4 {[%clk 0:00:03]}  Ke3 {[%clk 0:00:13]} 36. Kd1 {[%clk 0:00:03]}  Nf2+ {[%clk 0:00:12]} 37. Kc1 {[%clk 0:00:04]}  Nd3+ {[%clk 0:00:13]} 38. Kd1 {[%clk 0:00:04]}  Rd2# {[%clk 0:00:14]} 0-1